bitfinex-derivatives/quotes_BTCF0:USTF0_20250504
["timestamp","ask_amount","ask_price","bid_price","bid_amount"]
[1746334719602,0.2379743,95737.0,95736.0,0.06272]
[1746334719809,0.2319743,95737.0,95736.0,0.06272]
[1746334720206,0.2269743,95737.0,95736.0,0.18072]
[1746334720710,0.2289743,95737.0,95736.0,0.19772]
[1746334721010,0.2289743,95737.0,95736.0,0.26262]
[1746334724907,0.2595743,95737.0,95736.0,0.26262]
[1746334732120,0.2595743,95737.0,95736.0,0.135]
[1746334732613,0.2088852,95732.0,95731.0,0.00136336]
[1746334732818,0.2088917,95729.0,95728.0,0.0303]
[1746334733211,0.2088917,95729.0,95728.0,0.1483]
[1746334733813,0.2078917,95729.0,95728.0,0.1483]
[1746334734011,0.2038917,95729.0,95728.0,0.1483]
[1746334734415,0.2048917,95729.0,95728.0,0.1523]
[1746334736019,0.2058917,95729.0,95728.0,0.1523]
[1746334736619,0.2058917,95729.0,95728.0,0.16031042]
[1746334737320,0.2388917,95729.0,95728.0,0.16031042]
[1746334751031,0.2388917,95729.0,95728.0,0.19081042]
[1746334758437,0.2388917,95729.0,95728.0,0.16051042]
[1746334760035,0.2387351,95729.0,95728.0,0.16051042]
[1746334764144,0.2057351,95729.0,95728.0,0.16051042]
[1746334764542,0.002,95729.0,95728.0,0.47386832]
[1746334764843,0.2108917,95729.0,95728.0,0.26497442]
[1746334766343,0.2108917,95729.0,95728.0,0.47386832]
[1746334767136,0.2108917,95729.0,95728.0,0.36940432]
[1746334769940,0.2108917,95729.0,95728.0,0.16051042]
[1746334770345,0.2108917,95729.0,95728.0,0.19381042]
[1746334770638,0.2428917,95729.0,95728.0,0.16051042]
[1746334770837,0.2428917,95729.0,95728.0,0.13001042]
[1746334771845,0.2428917,95729.0,95728.0,0.122]
[1746334776846,0.2428917,95729.0,95728.0,0.1532]
[1746334781550,0.2428917,95729.0,95728.0,0.122]
[1746334781745,0.2428917,95729.0,95728.0,0.1525]
[1746334792147,0.2428917,95729.0,95728.0,0.122]
[1746334794859,0.2428917,95729.0,95728.0,0.154]
[1746334796060,0.2428917,95729.0,95728.0,0.122]
[1746334799653,0.2428917,95729.0,95728.0,0.1544]
[1746334800861,0.2428917,95729.0,95728.0,0.1857]
[1746334803866,0.2428917,95729.0,95728.0,0.1544]
[1746334804057,0.2428917,95729.0,95728.0,0.122]
[1746334804257,0.2089048,95723.0,95722.0,0.26587129]
[1746334804459,0.4108,95723.0,95714.0,0.31884302]
[1746334804658,0.4108,95723.0,95688.0,0.42516976]
[1746334804659,0.2089419,95706.0,95704.0,0.06272]
[1746334804960,0.2089419,95706.0,95705.0,0.01943382]
[1746334805261,0.2089528,95701.0,95688.0,0.42335166]
[1746334805459,0.25905068,95701.0,95688.0,0.42335166]
[1746334805867,0.10233648,95701.0,95688.0,0.42335166]
[1746334806063,0.5697681,95694.0,95693.0,0.05661301]
[1746334806479,0.2089681,95694.0,95693.0,0.05661301]
[1746334806670,0.2089681,95694.0,95693.0,0.27332894]
[1746334806861,0.2710681,95694.0,95693.0,0.27332894]
[1746334807165,0.2710681,95694.0,95693.0,0.39132894]
[1746334807668,0.2710681,95694.0,95693.0,0.42462894]
[1746334807864,0.004,95694.0,95693.0,0.42462894]
[1746334811666,0.2129681,95694.0,95693.0,0.42462894]
[1746334813270,0.2429681,95694.0,95693.0,0.42462894]
[1746334815467,0.004,95694.0,95693.0,0.42462894]
[1746334817071,0.004,95694.0,95693.0,0.78542894]
[1746334817368,0.2129681,95694.0,95693.0,0.78542894]
[1746334818166,0.004,95694.0,95693.0,0.78542894]
[1746334818972,0.0357,95694.0,95693.0,0.78542894]
[1746334819374,0.004,95694.0,95693.0,0.88992894]
[1746334819670,9.788e-05,95701.0,95700.0,0.208955]
[1746334819871,9.788e-05,95701.0,95700.0,0.271675]
[1746334820071,9.788e-05,95701.0,95700.0,0.494167]
[1746334820375,9.788e-05,95701.0,95700.0,0.559267]
[1746334821366,0.00209788,95701.0,95700.0,0.559267]
[1746334822072,0.2089273,95716.0,95715.0,0.2089223]
[1746334822377,0.2408167,95718.0,95717.0,0.2089179]
[1746334823176,0.2408167,95718.0,95717.0,0.33747831]
[1746334823476,0.2740167,95718.0,95717.0,0.3269179]
[1746334824975,0.2760167,95718.0,95717.0,0.3269179]
[1746334826473,0.2760167,95718.0,95717.0,0.3587179]
[1746334827072,0.0671,95718.0,95717.0,0.3587179]
[1746334827375,0.0352,95718.0,95717.0,0.49469389]
[1746334829176,0.0352,95718.0,95717.0,0.85549389]
[1746334831281,0.0673,95718.0,95717.0,0.85549389]
[1746334833171,0.0673,95718.0,95717.0,0.7510179]
[1746334836979,0.0673,95718.0,95717.0,0.7195179]
[1746334837180,0.0673,95718.0,95717.0,0.7497179]
[1746334839078,0.0673,95718.0,95717.0,0.7195179]
[1746334840190,0.0673,95718.0,95717.0,0.7515179]
[1746334845183,0.4706038,95765.0,95717.0,1.06577599]
[1746334845388,0.2088619,95743.0,95735.0,0.2088786]
[1746334845587,0.2088619,95743.0,95742.0,0.2088634]
[1746334845887,0.2103575,95745.0,95744.0,0.208859]
[1746334846092,0.2103575,95745.0,95744.0,0.326859]
[1746334847188,0.2113575,95745.0,95744.0,0.326859]
[1746334847394,0.0025,95745.0,95744.0,0.326859]
[1746334847893,0.0025,95745.0,95744.0,0.118]
[1746334848091,0.0025,95745.0,95744.0,0.326859]
[1746334848595,0.0346,95745.0,95744.0,0.326859]
[1746334849296,0.2434568,95745.0,95744.0,0.687659]
[1746334849495,0.0346,95745.0,95744.0,0.687659]
[1746334849692,0.2434568,95745.0,95744.0,0.687659]
[1746334851710,0.0346,95745.0,95744.0,0.687659]
[1746334851909,0.0346,95745.0,95744.0,0.69547188]
[1746334852608,0.0647,95745.0,95744.0,0.69547188]
[1746334853605,0.0647,95745.0,95744.0,0.72827188]
[1746334855618,0.0647,95745.0,95744.0,1.08907188]
[1746334863210,0.0647,95745.0,95744.0,0.72827188]
[1746334863919,0.0647,95745.0,95744.0,0.36747188]
[1746334864218,0.0647,95745.0,95744.0,0.72827188]
[1746334872525,0.05164951,95745.0,95744.0,0.72827188]
[1746334872718,0.0312,95748.0,95747.0,0.2088524]
[1746334873117,0.0312,95748.0,95747.0,0.3268524]
[1746334874117,0.0322,95748.0,95747.0,0.3268524]
[1746334874324,0.0332,95748.0,95747.0,0.3268524]
[1746334876524,0.0971,95748.0,95747.0,0.3268524]
[1746334880423,0.052208,95757.0,95755.0,0.2088328]
[1746334880618,0.0634,95756.0,95755.0,0.2088328]
[1746334880817,0.0954,95756.0,95755.0,0.2088328]
[1746334881218,0.0954,95756.0,95755.0,0.3268328]
[1746334881827,0.306234,95756.0,95755.0,0.3268328]
[1746334883125,0.306234,95756.0,95755.0,0.33712349]
[1746334883319,0.307234,95756.0,95755.0,0.33712349]
[1746334889523,0.307234,95756.0,95755.0,0.3268328]
[1746334892323,0.307234,95756.0,95755.0,0.3585328]
[1746334892632,0.307234,95756.0,95755.0,0.4215328]
[1746334906344,0.307234,95756.0,95755.0,0.3585328]
[1746334906544,0.307234,95756.0,95755.0,0.4215328]
[1746334911845,0.003,95756.0,95755.0,0.4215328]
[1746334912147,0.003,95756.0,95755.0,0.4848328]
[1746334915042,0.2118328,95756.0,95755.0,0.4848328]
[1746334916249,0.2428328,95756.0,95755.0,0.4544328]
[1746334916447,0.2748328,95756.0,95755.0,0.4544328]
[1746334918851,0.2748328,95756.0,95755.0,0.4706162]
[1746334920443,0.2748328,95756.0,95755.0,0.47061624]
[1746334920645,0.2748328,95756.0,95755.0,0.47061606]
[1746334921849,0.2748328,95756.0,95755.0,0.4544328]
[1746334922045,0.066,95756.0,95755.0,0.47061606]
[1746334922250,0.003,95756.0,95755.0,0.47061606]
[1746334922554,0.3608,95779.0,95765.0,0.2088132]
[1746334922857,0.2087965,95773.0,95765.0,0.58579501]
[1746334923047,0.2087965,95773.0,95765.0,0.58578158]
[1746334923246,0.2087965,95773.0,95765.0,0.6876132]
[1746334923449,0.0521979,95775.0,95765.0,0.7521132]
[1746334923755,0.2087967,95773.0,95765.0,0.7521132]
[1746334923954,0.2087967,95773.0,95765.0,0.76828159]
[1746334924155,0.2087967,95773.0,95765.0,0.7521132]
[1746334924358,0.005,95766.0,95765.0,0.76828159]
[1746334924760,0.006,95766.0,95765.0,0.7521132]
[1746334925956,0.006,95766.0,95765.0,0.76828118]
[1746334926159,0.006,95766.0,95765.0,0.7521132]
[1746334927365,0.006,95766.0,95765.0,0.76828065]
[1746334927861,0.006,95766.0,95765.0,0.7521132]
[1746334928265,0.006,95766.0,95765.0,0.76828012]
[1746334928758,0.006,95766.0,95765.0,0.76827953]
[1746334928966,0.006,95766.0,95765.0,0.7521132]
[1746334934955,0.214811,95766.0,95765.0,0.7521132]
[1746334935166,0.214811,95766.0,95765.0,0.7836332]
[1746334935363,0.006,95766.0,95765.0,0.7836332]
[1746334935865,0.0367,95766.0,95765.0,0.7836332]
[1746334936870,0.245511,95766.0,95765.0,0.7836332]
[1746334939365,0.0367,95766.0,95765.0,0.7836332]
[1746334940169,0.006,95766.0,95765.0,0.7836332]
[1746334940369,0.033,95773.0,95772.0,0.2087979]
[1746334940563,0.2417957,95773.0,95772.0,0.2087979]
[1746334941170,0.2417957,95773.0,95772.0,0.3595979]
[1746334941473,0.2477957,95773.0,95772.0,0.3902979]
[1746334942571,0.039,95773.0,95772.0,0.3902979]
[1746334942973,0.072,95773.0,95772.0,0.3902979]
[1746334943366,0.2807957,95773.0,95772.0,0.3902979]
[1746334943679,0.072,95773.0,95772.0,0.3902979]
[1746334944260,0.2807957,95773.0,95772.0,0.3902979]
[1746334944473,0.2807957,95773.0,95772.0,0.3595979]
[1746334944863,0.072,95773.0,95772.0,0.3595979]
[1746334948280,0.039,95773.0,95772.0,0.3595979]
[1746334948573,0.006,95773.0,95772.0,0.3595979]
[1746334955084,0.0629,95777.0,95776.0,0.2087892]
[1746334955281,0.0629,95777.0,95776.0,0.58589941]
[1746334955887,0.0629,95777.0,95776.0,0.61609941]
[1746334956086,0.0629,95777.0,95776.0,0.73409868]
[1746334956379,0.0659,95777.0,95776.0,0.73409868]
[1746334956573,0.007,95777.0,95776.0,0.7340985]
[1746334956986,0.007,95777.0,95776.0,0.76669847]
[1746334957782,0.007,95777.0,95776.0,0.76669831]
[1746334958181,0.007,95777.0,95776.0,0.73409831]
[1746334958383,0.0694,95777.0,95776.0,0.79773841]
[1746334958989,0.1,95800.0,95795.0,0.2087478]
[1746334959191,0.0304,95797.0,95795.0,0.40669691]
[1746334959380,0.1,95800.0,95798.0,0.2087391]
[1746334959585,0.3087369,95800.0,95799.0,0.22504821]
[1746334959780,0.3087369,95800.0,95799.0,0.23272421]
[1746334960194,0.1635,95800.0,95799.0,0.36099362]
[1746334960388,0.1635,95800.0,95799.0,0.36099098]
[1746334960589,0.1655,95800.0,95799.0,0.36099098]
[1746334960789,0.1685,95800.0,95799.0,0.36199098]
[1746334961184,0.1685,95800.0,95799.0,0.39389098]
[1746334961585,0.1685,95800.0,95799.0,0.39389034]
[1746334961996,0.1665,95800.0,95799.0,0.39389034]
[1746334962197,0.1695,95800.0,95799.0,0.39489034]
[1746334964803,0.1695,95800.0,95799.0,0.39434735]
[1746334966302,0.1695,95800.0,95799.0,0.37858451]
[1746334966502,0.1695,95800.0,95799.0,0.39488991]
[1746334967208,0.1695,95800.0,95799.0,0.39488986]
[1746334967798,0.15697749,95800.0,95799.0,0.39488986]
[1746334969707,0.12557749,95800.0,95799.0,0.39488986]
[1746334969910,0.0318,95807.0,95799.0,0.39488986]
[1746334969911,0.033,95806.0,95805.0,0.208726]
[1746334970111,0.207261,95812.0,95811.0,0.2087129]
[1746334970306,0.207261,95812.0,95811.0,0.28865825]
[1746334970509,0.210206,95815.0,95814.0,0.2087064]
[1746334970707,0.210206,95815.0,95814.0,0.22501175]
[1746334970708,0.195826,95815.0,95814.0,0.22501175]
[1746334971212,0.195826,95815.0,95814.0,0.34299472]
[1746334972712,0.200826,95815.0,95814.0,0.34399103]
[1746334972909,0.005,95815.0,95814.0,0.34399103]
[1746334973416,0.0521734,95820.0,95819.0,0.2086933]
[1746334973618,0.0521734,95820.0,95819.0,0.22497793]
[1746334973803,0.2190374,95820.0,95819.0,0.22497793]
[1746334974208,0.427737,95820.0,95819.0,0.34297895]
[1746334975118,0.433737,95820.0,95819.0,0.34397895]
[1746334975313,0.433737,95820.0,95819.0,0.34397796]
[1746334975516,0.439737,95820.0,95819.0,0.34497796]
[1746334976418,0.335373,95820.0,95819.0,0.34497796]
[1746334976622,0.335373,95820.0,95819.0,0.34498133]
[1746334977021,0.335373,95820.0,95819.0,0.34498127]
[1746334977319,0.335373,95820.0,95819.0,0.34498126]
[1746334978221,0.335373,95820.0,95819.0,0.3286933]
[1746334978416,0.335373,95820.0,95819.0,0.34498046]
[1746334979322,0.335373,95820.0,95819.0,0.34498469]
[1746334980625,0.335373,95820.0,95819.0,0.3286933]
[1746334981324,0.32754717,95820.0,95819.0,0.34424019]
[1746334983423,0.32754717,95820.0,95819.0,0.3286933]
[1746334983925,0.32754717,95820.0,95819.0,0.34485453]
[1746334984727,0.32754717,95820.0,95819.0,0.37725453]
[1746334985324,0.2530996,95820.0,95819.0,0.37725453]
[1746334986624,0.2530996,95820.0,95819.0,0.3772728]
[1746334986927,0.2530996,95820.0,95819.0,0.38775014]
[1746334987825,0.2530996,95820.0,95819.0,0.38774948]
[1746334988016,0.2530996,95820.0,95819.0,0.37727213]
[1746334988425,0.2480996,95820.0,95819.0,0.37627213]
[1746334988621,0.2430996,95820.0,95819.0,0.37528478]
[1746334990130,0.2430996,95820.0,95819.0,0.37528386]
[1746334990424,0.2440996,95820.0,95819.0,0.37528635]
[1746334991227,0.2757996,95820.0,95819.0,0.40728635]
[1746334991426,0.2757996,95820.0,95819.0,0.40728586]
[1746334991626,0.2440996,95820.0,95819.0,0.40728586]
[1746334991832,0.003,95820.0,95819.0,0.3910933]
[1746334992126,0.003,95820.0,95819.0,0.40728586]
[1746334992519,0.35597482,95822.0,95821.0,0.2086912]
[1746334992719,0.35597482,95822.0,95821.0,0.22488376]
[1746334992924,0.35597482,95822.0,95821.0,0.24036686]
[1746334993130,0.35597482,95822.0,95821.0,0.35836686]
[1746334993520,0.35597482,95822.0,95821.0,0.35847681]
[1746334993922,0.35797482,95822.0,95821.0,0.35847681]
[1746334994123,0.002,95822.0,95821.0,0.35847681]
[1746334995027,0.004,95822.0,95821.0,0.35847681]
[1746334996227,0.004,95822.0,95821.0,0.35847684]
[1746334998832,0.004,95822.0,95821.0,0.35847635]
[1746334999233,0.004,95822.0,95821.0,0.35847633]
[1746334999622,0.004,95822.0,95821.0,0.35847617]
[1746335000530,0.004,95822.0,95821.0,0.3421743]
[1746335000735,0.004,95822.0,95821.0,0.35847638]
[1746335001037,0.004,95822.0,95821.0,0.35847633]
[1746335002134,0.004,95822.0,95821.0,0.35847643]
[1746335002437,0.004,95822.0,95821.0,0.14978523]
[1746335002640,0.20485968,95824.0,95823.0,0.2086868]
[1746335002840,0.20485968,95824.0,95823.0,0.22498893]
[1746335003138,0.20485968,95824.0,95823.0,0.35847203]
[1746335003340,0.20485968,95824.0,95823.0,0.42177203]
[1746335003526,0.20485968,95824.0,95823.0,0.42177201]
[1746335003731,0.2618516,95826.0,95825.0,0.2086824]
[1746335003934,0.2618516,95826.0,95825.0,0.30430761]
[1746335004130,0.2618516,95826.0,95825.0,0.42230761]
[1746335004440,0.2096815,95826.0,95825.0,0.42230761]
[1746335005234,0.2116815,95826.0,95825.0,0.4221889]
[1746335006834,0.2116815,95826.0,95825.0,0.42218875]
[1746335007137,0.2126815,95826.0,95825.0,0.42218875]
[1746335007338,0.20016156,95826.0,95825.0,0.42218875]
[1746335007840,0.003,95826.0,95825.0,0.42218875]
[1746335008043,0.2116803,95826.0,95825.0,0.42217787]
[1746335008542,0.003,95826.0,95825.0,0.42217867]
[1746335009147,0.003,95826.0,95825.0,0.40670645]
[1746335009350,0.003,95826.0,95825.0,0.40676366]
[1746335009744,0.2116803,95826.0,95825.0,0.40676366]
[1746335010247,0.2116803,95826.0,95825.0,0.40663357]
[1746335012147,0.2116803,95826.0,95825.0,0.28863357]
[1746335012347,0.003,95826.0,95825.0,0.28863357]
[1746335013249,0.003,95826.0,95825.0,0.40663357]
[1746335015047,0.003,95826.0,95825.0,0.40679589]
[1746335015247,0.20385269,95828.0,95827.0,0.2086781]
[1746335015447,0.20385269,95828.0,95827.0,0.22495156]
[1746335015651,0.20385269,95828.0,95827.0,0.2405352]
[1746335015852,0.20385269,95828.0,95827.0,0.3054352]
[1746335016153,0.20385269,95828.0,95827.0,0.4234352]
[1746335016561,0.20485269,95828.0,95827.0,0.4234352]
[1746335016752,0.20485269,95828.0,95827.0,0.42343848]
[1746335017151,0.20685269,95828.0,95827.0,0.42343848]
[1746335017352,0.1943328,95828.0,95827.0,0.42343848]
[1746335018249,0.1943328,95828.0,95827.0,0.40716174]
[1746335018548,0.002,95828.0,95827.0,0.42344076]
[1746335018753,0.2086554,95838.0,95835.0,0.2086607]
[1746335018941,0.2388554,95838.0,95835.0,0.22493972]
[1746335019141,0.2388554,95838.0,95835.0,0.34293972]
[1746335019340,0.34255,95836.0,95835.0,0.34293972]
[1746335019548,0.34255,95836.0,95835.0,0.40813972]
[1746335019747,0.32559,95836.0,95835.0,0.3918607]
[1746335019952,0.32559,95836.0,95835.0,0.40793266]
[1746335020154,0.33159,95836.0,95835.0,0.40793266]
[1746335021258,0.5402485,95836.0,95835.0,0.40793266]
[1746335021457,0.5402485,95836.0,95835.0,0.3918607]
[1746335021655,0.5402485,95836.0,95835.0,0.40793648]
[1746335022158,0.5402485,95836.0,95835.0,0.28993648]
[1746335022953,0.2146585,95836.0,95835.0,0.28993648]
[1746335023156,0.2146585,95836.0,95835.0,0.40793648]
[1746335023356,0.2146585,95836.0,95835.0,0.407933]
[1746335023552,0.4431636,95838.0,95835.0,0.4600977]
[1746335023753,0.6518199,95838.0,95837.0,0.2086563]
[1746335023959,0.6518199,95838.0,95837.0,0.22473078]
[1746335024358,0.6518199,95838.0,95837.0,0.24017818]
[1746335024750,0.6518199,95838.0,95837.0,0.23963656]
[1746335025553,0.64399566,95838.0,95837.0,0.23963656]
[1746335025755,0.64499566,95838.0,95837.0,0.24999257]
[1746335026057,0.64499566,95838.0,95837.0,0.23454517]
[1746335026251,0.64599566,95838.0,95837.0,0.23454517]
[1746335027860,0.5714563,95838.0,95837.0,0.23499515]
[1746335028360,0.5714563,95838.0,95837.0,0.35299515]
[1746335030162,0.5714563,95838.0,95837.0,0.35299454]
[1746335030863,0.5714563,95838.0,95837.0,0.33701231]
[1746335031065,0.3628,95838.0,95837.0,0.35299454]
[1746335031257,0.3628,95838.0,95837.0,0.35299439]
[1746335031458,0.002,95838.0,95837.0,0.35299439]
[1746335031652,0.001,95856.0,95837.0,0.14433809]
[1746335031966,0.5210312,95849.0,95848.0,0.2086324]
[1746335032156,0.4688612,95849.0,95848.0,0.22461448]
[1746335032465,0.26023,95849.0,95848.0,0.22461312]
[1746335032764,0.26023,95849.0,95848.0,0.22461315]
[1746335032950,0.4708602,95849.0,95848.0,0.28781315]
[1746335033155,0.3716802,95849.0,95848.0,0.28781315]
[1746335033356,0.3706802,95849.0,95848.0,0.28781315]
[1746335033561,0.3726802,95849.0,95848.0,0.07918087]
[1746335033859,0.208665,95833.0,95826.0,0.21248061]
[1746335034062,0.326665,95833.0,95832.0,0.02385742]
[1746335034363,0.326665,95833.0,95832.0,0.02385686]
[1746335034564,0.326665,95833.0,95832.0,0.0238569]
[1746335034759,0.359865,95833.0,95832.0,0.0238569]
[1746335035261,0.391065,95833.0,95832.0,0.03797547]
[1746335035463,0.391065,95833.0,95832.0,0.03897547]
[1746335035763,0.391065,95833.0,95832.0,0.24864267]
[1746335036963,0.391065,95833.0,95832.0,0.24764267]
[1746335037266,0.273065,95833.0,95832.0,0.24864267]
[1746335039072,0.273065,95833.0,95832.0,0.36664267]
[1746335039073,0.208665,95833.0,95832.0,0.36664267]
[1746335039263,0.0332,95839.0,95832.0,0.22017547]
[1746335039468,0.2086572,95837.0,95836.0,0.2608183]
[1746335040061,0.2086572,95837.0,95836.0,0.3249183]
[1746335041265,0.2086572,95837.0,95836.0,0.4429183]
[1746335041772,0.19643203,95837.0,95836.0,0.4429183]
[1746335045373,0.2086343,95848.0,95847.0,0.2086324]
[1746335046367,0.2403343,95848.0,95847.0,0.2707324]
[1746335046579,0.2737343,95848.0,95847.0,0.2707324]
[1746335047773,0.2757343,95848.0,95847.0,0.2707324]
[1746335059690,0.2443343,95848.0,95847.0,0.2707324]
[1746335059980,0.2126343,95848.0,95847.0,0.2707324]
[1746335061772,0.20040976,95848.0,95847.0,0.2707324]
[1746335061977,0.20040976,95848.0,95847.0,0.28097467]
[1746335062484,0.20040976,95848.0,95847.0,0.2707324]
[1746335062884,0.20040976,95848.0,95847.0,0.28650497]
[1746335064279,0.20040976,95848.0,95847.0,0.28650468]
[1746335065185,0.18737039,95848.0,95847.0,0.28650468]
[1746335065386,0.18755583,95848.0,95847.0,0.28650468]
[1746335066483,0.18755583,95848.0,95847.0,0.07787233]
[1746335066879,0.25205583,95848.0,95847.0,0.07787233]
[1746335067786,0.25205583,95848.0,95847.0,0.07787475]
[1746335068279,0.25205583,95848.0,95847.0,0.0621]
[1746335068589,0.25205583,95848.0,95847.0,0.07787476]
[1746335068979,0.25205583,95848.0,95847.0,0.04677757]
[1746335069181,0.37005583,95848.0,95847.0,0.04677757]
[1746335069480,0.37005583,95848.0,95847.0,0.0467776]
[1746335070577,0.73085583,95848.0,95847.0,0.0467776]
[1746335070782,0.208665,95833.0,95826.0,0.06396]
[1746335070980,0.673813,95833.0,95826.0,0.06396]
[1746335071290,0.791813,95833.0,95826.0,0.06396]
[1746335071591,0.791813,95833.0,95826.0,0.09516]
[1746335071789,0.853713,95833.0,95826.0,0.09516]
[1746335072088,0.853713,95833.0,95832.0,0.27546346]
[1746335072290,0.853713,95833.0,95832.0,0.00987547]
[1746335073092,0.749365,95833.0,95832.0,0.00987547]
[1746335080693,0.2086716,95830.0,95829.0,0.0633]
[1746335080883,0.19644485,95830.0,95829.0,0.0633]
[1746335081080,0.31444485,95830.0,95829.0,0.0633]
[1746335082286,0.31444485,95830.0,95829.0,0.0731623]
[1746335082689,0.31444485,95830.0,95829.0,0.0751623]
[1746335085592,0.35547412,95830.0,95829.0,0.0751623]
[1746335088202,0.35547412,95830.0,95829.0,0.0731623]
[1746335088495,0.35547412,95830.0,95829.0,0.0711623]
[1746335088693,0.0158475,95830.0,95829.0,0.635188]
[1746335088888,0.00018544,95848.0,95847.0,0.2086345]
[1746335089088,0.07945958,95854.0,95847.0,0.2086345]
[1746335089089,0.04386502,95854.0,95853.0,0.2086215]
[1746335089391,0.3608,95873.0,95860.0,0.2086062]
[1746335089589,0.10402665,95869.0,95868.0,0.2085888]
[1746335089789,0.07531665,95869.0,95868.0,0.2085888]
[1746335090092,0.07531665,95877.0,95868.0,0.2085888]
[1746335090395,0.2085754,95875.0,95874.0,0.260715]
[1746335091296,0.28388645,95877.0,95876.0,0.2085714]
[1746335092495,0.28388645,95877.0,95876.0,0.2417714]
[1746335092691,0.28688645,95877.0,95876.0,0.2417714]
[1746335093099,0.001,95886.0,95884.0,0.208554]
[1746335093303,0.13937183,95890.0,95889.0,0.2085432]
[1746335093491,0.13937183,95890.0,95889.0,0.6336232]
[1746335093798,0.2085038,95908.0,95899.0,0.2085214]
[1746335094096,0.2085075,95906.0,95899.0,0.6873214]
[1746335094300,0.2085088,95905.0,95899.0,0.69772253]
[1746335095092,0.0521263,95907.0,95899.0,0.6873214]
[1746335095293,0.0521263,95907.0,95899.0,0.69510344]
[1746335095801,0.101,95900.0,95899.0,0.69510344]
[1746335097100,0.103,95900.0,95899.0,0.75920344]
[1746335107109,0.3115192,95900.0,95899.0,0.75920344]
[1746335107311,0.103,95900.0,95899.0,0.75920344]
[1746335108808,0.0319,95915.0,95914.0,0.2084888]
[1746335109110,0.3583866,95915.0,95914.0,0.5692888]
[1746335109911,0.3623866,95915.0,95914.0,0.5692888]
[1746335110111,0.3925866,95915.0,95914.0,0.6019888]
[1746335110310,0.3955866,95915.0,95914.0,0.6019888]
[1746335110809,0.2084975,95910.0,95909.0,0.06648]
[1746335111018,0.2084975,95910.0,95909.0,0.2749797]
[1746335111203,0.3264975,95910.0,95909.0,0.2749797]
[1746335112406,0.3264975,95910.0,95909.0,0.2084997]
[1746335112908,0.3274975,95910.0,95909.0,0.2084997]
[1746335113204,0.3294975,95910.0,95909.0,0.2084997]
[1746335114315,0.3294975,95910.0,95909.0,0.2718997]
[1746335117607,0.121,95910.0,95909.0,0.2718997]
[1746335118318,0.1526,95910.0,95909.0,0.6326997]
[1746335118811,0.3610975,95910.0,95909.0,0.6326997]
[1746335120918,0.3610975,95910.0,95909.0,0.64854542]
[1746335121216,0.3610975,95910.0,95909.0,0.37664572]
[1746335121519,0.3610975,95910.0,95909.0,0.58514542]
[1746335121717,0.2084997,95909.0,95908.0,0.06648]
[1746335121913,0.2397997,95909.0,95908.0,0.06648]
[1746335122112,0.3904997,95909.0,95908.0,0.2749818]
[1746335122819,0.3934997,95909.0,95908.0,0.2749818]
[1746335123020,0.3934997,95909.0,95908.0,0.2085018]
[1746335125223,0.3621997,95909.0,95908.0,0.2085018]
[1746335125427,0.121,95909.0,95908.0,0.3127698]
[1746335125724,0.10878415,95909.0,95908.0,0.3127698]
[1746335125927,0.10878415,95909.0,95908.0,0.3768698]
[1746335126121,0.09575509,95909.0,95908.0,0.3768698]
[1746335126320,0.09375509,95909.0,95908.0,0.3768698]
[1746335126623,0.09275509,95909.0,95908.0,0.3778698]
[1746335128925,0.09275509,95909.0,95908.0,0.3768698]
[1746335131030,0.09275509,95909.0,95908.0,0.2726018]
[1746335132122,0.07972589,95909.0,95908.0,0.28851036]
[1746335133726,0.07972589,95909.0,95908.0,0.35499036]
[1746335135331,0.0318,95915.0,95914.0,0.2084888]
[1746335135533,0.01228,95923.0,95922.0,0.2084714]
[1746335135724,0.01228,95923.0,95922.0,0.65165996]
[1746335136130,0.09681,95923.0,95922.0,0.65165996]
[1746335136429,0.01326165,95923.0,95922.0,0.65165996]
[1746335136641,0.01726165,95923.0,95922.0,0.71565996]
[1746335137133,0.03064165,95926.0,95925.0,0.2084649]
[1746335137334,0.03064165,95926.0,95925.0,0.22437346]
[1746335137536,0.2084461,95934.0,95933.0,0.2084475]
[1746335138036,0.2084461,95934.0,95933.0,0.22435606]
[1746335138236,0.3264461,95934.0,95933.0,0.22435606]
[1746335138740,0.3294461,95934.0,95933.0,0.22433927]
[1746335139234,0.123,95934.0,95933.0,0.22433927]
[1746335139640,0.123,95934.0,95933.0,0.25623927]
[1746335140137,0.123,95934.0,95933.0,0.28663927]
[1746335140328,0.001,95946.0,95945.0,0.2084214]
[1746335140533,0.3608,95950.0,95949.0,0.2084128]
[1746335140734,0.2084094,95951.0,95950.0,0.2084106]
[1746335141042,0.2084094,95951.0,95950.0,0.2708106]
[1746335141237,0.3264094,95951.0,95950.0,0.2708106]
[1746335141539,0.3264094,95951.0,95950.0,0.28670237]
[1746335141933,0.3589094,95951.0,95950.0,0.25480237]
[1746335142331,0.3619094,95951.0,95950.0,0.25480237]
[1746335142540,0.3649094,95951.0,95950.0,0.25480237]
[1746335142734,0.35269788,95951.0,95950.0,0.26663558]
[1746335143024,0.34488236,95951.0,95950.0,0.26663558]
[1746335143225,0.34488236,95951.0,95950.0,0.2744571]
[1746335143832,0.70568236,95951.0,95950.0,0.0355465]
[1746335144033,0.70568236,95951.0,95950.0,0.2439571]
[1746335144233,0.69317764,95951.0,95950.0,0.26023929]
[1746335144535,0.69317764,95951.0,95950.0,0.24434767]
[1746335144740,0.69317764,95951.0,95950.0,0.26063001]
[1746335145736,0.68340824,95951.0,95950.0,0.26063001]
[1746335146547,0.68340824,95951.0,95950.0,0.26046885]
[1746335146937,0.68340824,95951.0,95950.0,0.05205825]
[1746335147739,0.67819789,95951.0,95950.0,0.26046827]
[1746335147939,0.67819789,95951.0,95950.0,0.05205767]
[1746335148141,0.67819789,95951.0,95950.0,0.05205445]
[1746335148538,0.67819789,95951.0,95950.0,0.05205326]
[1746335148848,0.67819789,95951.0,95950.0,0.0520528]
[1746335149647,0.7824179,95951.0,95950.0,0.0520528]
[1746335149942,0.7824179,95951.0,95950.0,0.05205079]
[1746335150543,0.8324179,95951.0,95950.0,0.04422173]
[1746335151141,0.2084388,95937.0,95936.0,0.06632]
[1746335151654,0.19869164,95926.0,95925.0,0.42048078]
[1746335151844,0.18646763,95926.0,95925.0,0.42048078]
[1746335152247,0.30446763,95926.0,95925.0,0.42048078]
[1746335152447,0.36686763,95926.0,95925.0,0.42048078]
[1746335152646,0.35953928,95926.0,95925.0,0.42048078]
[1746335153243,0.35172237,95926.0,95925.0,0.42448078]
[1746335154351,0.35172237,95926.0,95925.0,0.4322438]
[1746335154546,0.35172237,95926.0,95925.0,0.2237811]
[1746335157453,0.35172237,95926.0,95925.0,0.01176302]
[1746335157753,0.35172237,95926.0,95925.0,0.22022792]